bitfinex-derivatives/quotes_BTCF0:USTF0_20241006
["timestamp","ask_amount","ask_price","bid_price","bid_amount"]
[1728197241977,0.064504,62014.0,62012.0,0.06427222]
[1728197242167,0.11,62013.0,62012.0,0.06427222]
[1728197242873,0.11,62013.0,62012.0,0.08729681]
[1728197243367,0.11,62013.0,62012.0,0.02302459]
[1728197243567,0.11,62013.0,62011.0,0.08044941]
[1728197244170,0.11,62013.0,62012.0,0.08044941]
[1728197244370,0.11,62013.0,62011.0,0.08044941]
[1728197244676,0.064506,62012.0,62010.0,0.11254941]
[1728197245774,0.064506,62012.0,62010.0,0.13531378]
[1728197245976,0.112,62013.0,62010.0,0.13531378]
[1728197245977,0.064507,62011.0,62010.0,0.0321]
[1728197247671,0.002,62012.0,62007.0,0.00241876]
[1728197247866,0.174511,62008.0,62007.0,0.00241876]
[1728197248873,0.174511,62008.0,62007.0,0.00341876]
[1728197249067,0.175511,62008.0,62007.0,0.00341876]
[1728197250377,0.175511,62008.0,62007.0,0.06772378]
[1728197250882,0.176511,62008.0,62007.0,0.06772378]
[1728197251769,0.176511,62008.0,62007.0,0.00341876]
[1728197254974,0.175511,62008.0,62007.0,0.00341876]
[1728197255173,0.176511,62008.0,62007.0,0.00341876]
[1728197255571,0.537311,62008.0,62007.0,0.00341876]
[1728197256576,0.176511,62008.0,62007.0,0.00341876]
[1728197256779,0.537311,62008.0,62007.0,0.00341876]
[1728197259586,0.537311,62008.0,62002.0,0.06809591]
[1728197259587,1.5566,62008.0,62002.0,0.06809591]
[1728197259882,0.064516,62003.0,62002.0,0.0038]
[1728197260083,0.11,62004.0,62001.0,0.0619]
[1728197260084,0.064517,62002.0,62001.0,0.0619]
[1728197261382,0.064517,62002.0,62001.0,0.08522393]
[1728197261896,0.11,62004.0,61997.0,0.0520065]
[1728197262087,0.064523,61996.0,61995.0,0.07170936]
[1728197262388,0.11,61998.0,61994.0,0.04821671]
[1728197262389,0.064524,61995.0,61994.0,0.04821671]
[1728197262591,0.064524,61995.0,61993.0,0.04821671]
[1728197262592,0.064525,61994.0,61993.0,0.04821671]
[1728197263384,0.064525,61994.0,61992.0,0.07961671]
[1728197264893,0.064527,61992.0,61991.0,0.02337427]
[1728197265083,0.11,61992.0,61990.0,0.032]
[1728197265282,0.064528,61991.0,61990.0,0.032]
[1728197265485,0.064528,61991.0,61990.0,0.09629591]
[1728197266480,0.064528,61991.0,61990.0,0.11934018]
[1728197267698,0.066528,61991.0,61990.0,0.11934018]
[1728197270882,0.066528,61991.0,61990.0,0.09629591]
[1728197271101,0.066528,61991.0,61990.0,0.06429591]
[1728197271285,0.066528,61991.0,61986.0,0.08424941]
[1728197271286,0.064529,61990.0,61989.0,0.06429591]
[1728197271494,0.174529,61990.0,61989.0,0.06429591]
[1728197273391,0.064531,61988.0,61987.0,0.06429591]
[1728197274596,0.001,61988.0,61987.0,0.04821591]
[1728197274800,0.001,61988.0,61985.0,0.09739591]
[1728197274801,0.064533,61986.0,61985.0,0.0331]
[1728197275094,0.174533,61986.0,61985.0,0.0331]
[1728197275487,0.174533,61986.0,61985.0,0.08132665]
[1728197275683,0.174533,61986.0,61985.0,0.0331]
[1728197276495,0.535333,61986.0,61985.0,0.0331]
[1728197277297,0.175533,61986.0,61985.0,0.0331]
[1728197277484,0.536333,61986.0,61985.0,0.08132665]
[1728197277995,0.537333,61986.0,61985.0,0.08132665]
[1728197278304,0.176533,61986.0,61985.0,0.08132665]
[1728197278498,0.176533,61986.0,61985.0,0.0331]
[1728197279000,0.064536,61984.0,61983.0,0.0313]
[1728197279499,0.064537,61983.0,61982.0,0.02340693]
[1728197280401,0.064537,61983.0,61982.0,0.08770284]
[1728197280706,0.064537,61983.0,61982.0,0.02340693]
[1728197281598,0.065537,61983.0,61982.0,0.02340693]
[1728197281991,0.066537,61983.0,61982.0,0.02340693]
[1728197282191,0.064539,61981.0,61980.0,0.08044941]
[1728197282398,0.064539,61981.0,61980.0,0.10274982]
[1728197282399,0.174539,61981.0,61980.0,0.10274982]
[1728197283505,0.175539,61981.0,61980.0,0.18313544]
[1728197284501,0.176539,61981.0,61980.0,0.18313544]
[1728197284688,0.176539,61981.0,61980.0,0.08038562]
[1728197285195,0.176539,61981.0,61980.0,0.10419664]
[1728197285392,0.176539,61981.0,61980.0,0.20701887]
[1728197285593,0.176539,61981.0,61980.0,0.02381102]
[1728197285903,0.06454,61980.0,61979.0,0.11328562]
[1728197286103,0.06454,61980.0,61979.0,0.21614125]
[1728197286398,0.06454,61980.0,61979.0,0.13575563]
[1728197287406,0.06554,61980.0,61979.0,0.13575563]
[1728197287791,0.06654,61980.0,61979.0,0.13575563]
[1728197288302,0.06654,61980.0,61979.0,0.15910139]
[1728197291496,0.06454,61980.0,61979.0,0.2556679]
[1728197291697,0.06654,61980.0,61979.0,0.12620139]
[1728197292199,0.06654,61980.0,61979.0,0.20670764]
[1728197292401,0.42734,61980.0,61979.0,0.20670764]
[1728197292902,0.42734,61980.0,61979.0,0.18336188]
[1728197293296,0.42734,61980.0,61979.0,0.10285563]
[1728197293697,0.42734,61980.0,61979.0,0.18337206]
[1728197295606,0.064544,61976.0,61973.0,0.03551054]
[1728197295806,0.3628,61980.0,61974.0,0.10325517]
[1728197295807,0.174545,61975.0,61974.0,0.10325517]
[1728197297598,0.175545,61975.0,61974.0,0.10325517]
[1728197298211,0.176545,61975.0,61974.0,0.10325517]
[1728197302715,0.176545,61975.0,61974.0,0.10334007]
[1728197303618,0.176545,61975.0,61974.0,0.22653483]
[1728197304322,0.176545,61975.0,61974.0,0.10334007]
[1728197305612,0.537345,61975.0,61974.0,0.10334007]
[1728197305912,0.537345,61975.0,61973.0,0.08060859]
[1728197306110,0.537345,61975.0,61972.0,0.08060859]
[1728197306310,0.174547,61973.0,61972.0,0.08060859]
[1728197306511,0.174547,61973.0,61972.0,0.1843324]
[1728197306921,0.174547,61973.0,61970.0,0.0004]
[1728197306922,0.064548,61972.0,61971.0,0.08060859]
[1728197307220,0.064548,61972.0,61971.0,0.184324]
[1728197307409,0.064548,61972.0,61971.0,0.18431076]
[1728197307612,0.064548,61972.0,61970.0,0.08100859]
[1728197307613,0.064549,61971.0,61970.0,0.08100859]
[1728197307913,0.064549,61971.0,61970.0,0.0004]
[1728197309320,0.174549,61971.0,61970.0,0.0004]
[1728197310622,0.174549,61971.0,61970.0,0.06482676]
[1728197311115,0.174549,61971.0,61970.0,0.0004]
[1728197311316,0.174549,61971.0,61970.0,0.06482676]
[1728197311618,0.174549,61971.0,61970.0,0.0004]
[1728197314516,0.174549,61971.0,61967.0,0.06442676]
[1728197314517,1.19412,61971.0,61967.0,0.06442676]
[1728197314717,0.11,61968.0,61966.0,0.06442676]
[1728197314925,0.11,61968.0,61965.0,0.06684755]
[1728197314926,0.064554,61966.0,61965.0,0.06684755]
[1728197315113,0.064554,61966.0,61965.0,0.00242079]
[1728197316217,0.064556,61964.0,61963.0,0.0004]
[1728197316828,0.064556,61964.0,61963.0,0.04869143]
[1728197317521,0.064556,61964.0,61958.0,0.06442676]
[1728197317522,0.548716,61964.0,61958.0,0.06442676]
[1728197317716,0.11,61959.0,61958.0,0.06442676]
[1728197317919,0.11,61959.0,61955.0,0.0042]
[1728197317920,0.11,61959.0,61956.0,0.06442676]
[1728197318118,0.064565,61956.0,61955.0,0.06482676]
[1728197318725,0.064565,61956.0,61955.0,0.0004]
[1728197320325,0.174565,61956.0,61955.0,0.0004]
[1728197327935,0.175565,61956.0,61955.0,0.0004]
[1728197329534,0.175565,61956.0,61954.0,0.0004]
[1728197329535,0.111,61956.0,61954.0,0.0004]
[1728197329738,0.064566,61955.0,61954.0,0.0004]
[1728197330031,0.064566,61955.0,61949.0,0.0038]
[1728197330239,0.064574,61947.0,61946.0,0.06431756]
[1728197330436,0.174574,61947.0,61946.0,0.06431756]
[1728197331743,0.175574,61947.0,61946.0,0.06431756]
[1728197333135,0.064576,61945.0,61944.0,0.00788948]
[1728197334237,0.064576,61945.0,61944.0,0.08849807]
[1728197334544,0.065576,61945.0,61944.0,0.08849807]
[1728197335227,0.066576,61945.0,61944.0,0.19252348]
[1728197336140,0.066576,61945.0,61944.0,0.11191489]
[1728197338349,0.066976,61945.0,61944.0,0.11191489]
[1728197339539,0.427776,61945.0,61944.0,0.00788948]
[1728197339742,0.3632,61945.0,61942.0,0.0024217]
[1728197339936,0.174578,61943.0,61942.0,0.0024217]
[1728197340243,0.174578,61943.0,61942.0,0.01036866]
[1728197341135,0.175578,61943.0,61942.0,0.09086043]
[1728197341344,0.175578,61943.0,61939.0,0.0805299]
[1728197341643,0.064583,61938.0,61937.0,0.0805299]
[1728197341946,0.064586,61936.0,61935.0,0.0805299]
[1728197342245,0.174586,61936.0,61935.0,0.18514469]
[1728197342541,0.174586,61936.0,61934.0,0.08053402]
[1728197342542,0.11,61936.0,61934.0,0.08053402]
[1728197342738,0.064587,61935.0,61934.0,0.08053402]
[1728197343042,0.064587,61935.0,61934.0,0.18515837]
[1728197343245,0.064587,61935.0,61934.0,0.10462435]
[1728197343542,0.064588,61934.0,61933.0,0.0324]
[1728197343742,0.064588,61934.0,61933.0,0.13701765]
[1728197344939,0.065588,61934.0,61933.0,0.13701765]
[1728197345736,0.066588,61934.0,61933.0,0.13701765]
[1728197347545,0.066588,61934.0,61933.0,0.21751109]
[1728197347947,0.064589,61933.0,61932.0,0.08089344]
[1728197348246,0.174589,61933.0,61932.0,0.18549617]
[1728197348848,0.174989,61933.0,61932.0,0.18549617]
[1728197349047,0.174989,61933.0,61932.0,0.18549595]
[1728197349048,0.175989,61933.0,61932.0,0.18549595]
[1728197349250,0.175989,61933.0,61932.0,0.0004]
[1728197349442,0.176989,61933.0,61932.0,0.0004]
[1728197351646,0.175989,61933.0,61932.0,0.0004]
[1728197351837,0.176989,61933.0,61932.0,0.0004]
[1728197359155,0.176989,61933.0,61932.0,0.08089344]
[1728197359561,0.176989,61933.0,61932.0,0.1855709]
[1728197362650,0.066989,61933.0,61932.0,0.18621084]
[1728197362853,0.176989,61933.0,61932.0,0.18621084]
[1728197363858,0.066989,61933.0,61932.0,0.18621084]
[1728197364354,0.066989,61933.0,61932.0,0.1057174]
[1728197364558,0.066989,61933.0,61932.0,0.18635355]
[1728197364760,0.066989,61933.0,61932.0,0.08096849]
[1728197365143,0.066989,61933.0,61932.0,0.1863843]
[1728197365643,0.066989,61933.0,61932.0,0.08096849]
[1728197366152,0.066989,61933.0,61932.0,0.18641065]
[1728197366347,0.066989,61933.0,61932.0,0.08096849]
[1728197366558,0.066989,61933.0,61932.0,0.1864124]
[1728197366757,0.066989,61933.0,61932.0,0.08096849]
[1728197367146,0.066989,61933.0,61932.0,0.10587262]
[1728197368646,0.176989,61933.0,61932.0,0.10587262]
[1728197369348,0.176989,61933.0,61932.0,0.18658949]
[1728197369548,0.176989,61933.0,61932.0,0.08111687]
[1728197369750,0.176989,61933.0,61932.0,0.1869255]
[1728197369961,1.261389,61933.0,61932.0,0.08111687]
[1728197370259,1.261389,61933.0,61932.0,0.0004]
[1728197371153,1.260389,61933.0,61932.0,0.0004]
[1728197371360,1.2844029,61933.0,61932.0,0.0004]
[1728197371858,0.064591,61931.0,61930.0,0.0004]
[1728197373058,0.425391,61931.0,61930.0,0.0004]
[1728197373852,0.426391,61931.0,61930.0,0.0004]
[1728197375063,0.427391,61931.0,61930.0,0.0004]
[1728197377659,0.427391,61931.0,61930.0,0.06491058]
[1728197379363,0.427391,61931.0,61930.0,0.0004]
[1728197379765,0.427391,61931.0,61930.0,0.06490507]
[1728197385161,0.537391,61931.0,61930.0,0.06490507]
[1728197386271,0.427391,61931.0,61930.0,0.06490507]
[1728197386470,0.537391,61931.0,61930.0,0.06490507]
[1728197387970,0.537391,61931.0,61930.0,0.21597925]
[1728197387971,0.3628,61931.0,61930.0,0.21597925]
[1728197388177,0.3628,61931.0,61930.0,0.24817925]
[1728197388481,0.427391,61931.0,61930.0,0.24817925]
[1728197388775,0.427391,61931.0,61930.0,0.27857925]
[1728197389978,0.3628,61931.0,61930.0,0.27857925]
[1728197390573,0.002,61931.0,61930.0,1.42757125]
[1728197390768,0.002,61931.0,61930.0,1.42745096]
[1728197391172,0.0004,61933.0,61932.0,0.06459]
[1728197391367,0.0004,61933.0,61932.0,0.26680649]
[1728197392876,0.0004,61933.0,61932.0,0.17004896]
[1728197393574,0.0113,61936.0,61935.0,0.064587]
[1728197393774,0.0113,61939.0,61938.0,0.064583]
[1728197393974,0.0038,61942.0,61940.0,0.064581]
[1728197393975,0.0113,61942.0,61940.0,0.064581]
[1728197394175,0.0113,61942.0,61941.0,0.24845896]
[1728197394376,0.3725,61945.0,61943.0,0.064578]
[1728197394583,0.3725,61945.0,61944.0,0.29557313]
[1728197394772,0.3612,61945.0,61944.0,0.29557278]
[1728197394977,0.3612,61945.0,61944.0,0.2150014]
[1728197395286,0.0004,61945.0,61944.0,0.2150014]
[1728197395679,0.0004,61945.0,61944.0,0.11]
[1728197395985,0.0124,61945.0,61944.0,0.11]
[1728197396685,0.0264,61945.0,61944.0,0.11]
[1728197397379,0.0264,61945.0,61944.0,0.174577]
[1728197397583,0.0104,61945.0,61944.0,0.174577]
[1728197397885,0.0184,61945.0,61944.0,0.175577]
[1728197398189,0.0084,61945.0,61944.0,0.175577]
[1728197398381,0.0004,61945.0,61944.0,0.175577]
[1728197398686,0.0004,61945.0,61944.0,0.20280221]
[1728197398882,0.0004,61945.0,61944.0,0.09280221]
[1728197399188,0.0014,61945.0,61944.0,0.09280221]
[1728197400681,0.0024,61945.0,61944.0,0.10080221]
[1728197401389,0.0024,61945.0,61944.0,0.16514577]
[1728197401688,0.066976,61945.0,61944.0,0.013]
[1728197407091,0.427776,61945.0,61944.0,0.013]
[1728197409092,0.066976,61945.0,61944.0,0.013]
[1728197409294,0.427776,61945.0,61944.0,0.013]
[1728197410002,0.066976,61945.0,61944.0,0.013]
[1728197410297,0.066976,61945.0,61944.0,0.07734356]
[1728197410298,0.427776,61945.0,61944.0,0.07734356]
[1728197411087,0.537776,61945.0,61944.0,0.07734356]
[1728197411894,0.3632,61945.0,61944.0,0.123]
[1728197412092,0.3632,61945.0,61944.0,0.187577]
[1728197412699,0.3632,61945.0,61944.0,0.26814757]
[1728197413494,0.3632,61945.0,61944.0,0.37299019]
[1728197413887,0.0024,61945.0,61944.0,0.29241696]
[1728197414388,0.0024,61945.0,61944.0,0.41438205]
[1728197414593,0.0024,61945.0,61944.0,0.31765543]
[1728197415196,0.0024,61945.0,61944.0,1.40197543]
[1728197415396,0.0024,61945.0,61944.0,1.43517543]
[1728197415794,0.00622211,61951.0,61945.0,0.48428]
[1728197415989,0.00242211,61951.0,61950.0,0.064571]
[1728197416186,0.00242211,61951.0,61950.0,0.20301096]
[1728197416397,0.00242211,61951.0,61950.0,1.28725096]
[1728197416600,0.00242211,61951.0,61950.0,1.38381473]
[1728197417195,0.00242211,61951.0,61950.0,1.28725096]
[1728197417492,0.00342211,61951.0,61950.0,1.182411]
[1728197417692,0.00342211,61951.0,61950.0,1.38334608]
[1728197418095,0.01542211,61951.0,61950.0,1.40624293]
[1728197418896,0.02742211,61951.0,61950.0,1.40724293]
[1728197419404,0.02742211,61951.0,61950.0,1.40725099]
[1728197419705,0.02742211,61951.0,61950.0,1.43513]
[1728197419901,0.02742211,61951.0,61950.0,1.31067916]
[1728197420101,0.02742211,61951.0,61950.0,1.43513324]
[1728197420299,0.02742211,61951.0,61950.0,1.79593324]
[1728197421904,0.02742211,61951.0,61950.0,1.19593324]
[1728197423405,0.02742211,61951.0,61950.0,0.83513324]
[1728197424003,0.02742211,61951.0,61950.0,0.35089324]
[1728197431204,0.02742211,61951.0,61950.0,0.3509811]
[1728197434312,0.02742211,61951.0,61950.0,0.37621641]
[1728197436305,0.02742211,61951.0,61950.0,0.37621621]
[1728197436814,0.02742211,61951.0,61950.0,0.35107208]
[1728197437116,0.02742211,61951.0,61950.0,0.37630719]
[1728197438310,0.02742211,61951.0,61950.0,0.25177752]
[1728197439222,0.02742211,61951.0,61950.0,0.37637941]
[1728197439723,0.02742211,61951.0,61950.0,0.3511443]
[1728197439907,0.02742211,61951.0,61950.0,0.37637969]
[1728197440107,0.02742211,61951.0,61950.0,0.41675602]
[1728197442617,0.02742211,61951.0,61950.0,0.77755602]
[1728197443012,0.02742211,61951.0,61950.0,0.3511443]
[1728197443209,0.02742211,61951.0,61950.0,0.77755504]
[1728197444409,0.02742211,61951.0,61950.0,0.89022849]
[1728197445113,0.02742211,61951.0,61950.0,0.52942849]
[1728197445313,0.02742211,61951.0,61950.0,1.03512755]
[1728197445514,0.0075,61954.0,61953.0,0.064568]
[1728197445817,0.0004,61955.0,61954.0,0.064567]
[1728197446019,0.0004,61955.0,61954.0,0.29364345]
[1728197446213,0.0004,61955.0,61954.0,0.55128627]
[1728197447316,0.0004,61955.0,61954.0,0.42668438]
[1728197447621,0.0004,61955.0,61954.0,0.55126747]
[1728197448415,0.0054,61955.0,61954.0,0.55226747]
[1728197449122,0.0074,61955.0,61954.0,0.55326747]
[1728197451716,0.0074,61955.0,61954.0,0.29562831]
[1728197452117,0.0074,61955.0,61954.0,0.32086315]
[1728197452317,0.0074,61955.0,61954.0,0.36123876]
[1728197456228,0.0074,61955.0,61954.0,0.36148439]
[1728197459721,0.0074,61955.0,61954.0,0.29587394]
[1728197460022,0.0074,61955.0,61954.0,0.36148423]
[1728197460428,0.0074,61955.0,61954.0,0.361482]
[1728197460619,0.0074,61955.0,61954.0,0.50594782]
[1728197460925,0.0074,61955.0,61954.0,0.6189206]
[1728197461427,0.0074,61955.0,61954.0,0.50592328]
[1728197464432,0.0074,61955.0,61954.0,0.5057349]
[1728197465536,0.0075,61959.0,61957.0,0.064563]
[1728197465740,0.0301,61960.0,61958.0,0.40459107]
[1728197465927,0.0301,61960.0,61959.0,0.22898498]
[1728197468238,0.0421,61960.0,61959.0,0.23098498]
[1728197468830,0.0421,61960.0,61959.0,0.34098498]
[1728197469036,0.0421,61960.0,61959.0,0.36428472]
[1728197469235,0.0421,61960.0,61959.0,0.36432493]
[1728197470136,0.0421,61960.0,61959.0,0.42888693]
[1728197471332,0.0421,61960.0,61959.0,0.49449273]
[1728197472234,0.012,61960.0,61959.0,0.49449273]
[1728197473943,0.012,61960.0,61959.0,0.49423374]
[1728197475140,0.011,61960.0,61959.0,0.49423374]
[1728197475344,0.011,61960.0,61959.0,0.49423167]
[1728197475641,0.011,61960.0,61959.0,0.97843167]
[1728197476532,0.011,61960.0,61959.0,1.12281079]
[1728197476741,0.0075,61965.0,61964.0,0.064556]
[1728197476932,0.033,61969.0,61965.0,0.064554]
[1728197477128,0.033,61969.0,61966.0,0.40436993]
[1728197477334,0.064552,61968.0,61967.0,0.2287662]
[1728197477644,0.064552,61968.0,61967.0,0.10436597]
[1728197478737,0.064552,61968.0,61967.0,0.20086461]
[1728197478945,0.185552,61968.0,61967.0,0.10514484]
[1728197480543,0.185552,61968.0,61967.0,0.10614484]
[1728197482244,0.546352,61968.0,61967.0,0.10614484]
[1728197484940,0.185552,61968.0,61967.0,0.10614484]
[1728197485244,0.546352,61968.0,61967.0,0.10614484]
[1728197486438,0.075552,61968.0,61967.0,0.10614484]
[1728197486751,0.436352,61968.0,61967.0,0.10614484]
[1728197487936,0.075552,61968.0,61967.0,0.10614484]
[1728197488141,0.436352,61968.0,61967.0,0.10614484]
[1728197488339,0.436352,61968.0,61967.0,0.10629209]
[1728197493752,0.436352,61968.0,61967.0,0.18694873]
[1728197494058,0.436352,61968.0,61967.0,0.10629209]
[1728197499945,0.075552,61968.0,61967.0,0.10629209]
[1728197500153,0.436352,61968.0,61967.0,0.10629209]
[1728197500341,0.075552,61968.0,61967.0,0.10629209]
[1728197500546,0.075552,61968.0,61967.0,0.17084509]
[1728197500547,0.011,61968.0,61967.0,0.17084509]
[1728197500755,0.011,61968.0,61967.0,0.2364424]
[1728197501058,0.011,61968.0,61967.0,0.36050294]
[1728197502664,0.011,61968.0,61967.0,0.36019128]
[1728197503056,0.011,61968.0,61967.0,0.29459397]
[1728197503266,0.011,61968.0,61967.0,0.36018919]
[1728197504567,0.011,61968.0,61967.0,0.38541757]
[1728197504953,0.011,61968.0,61967.0,0.29459397]
[1728197505263,0.011,61968.0,61967.0,0.40861346]
[1728197505466,0.011,61968.0,61967.0,0.38338513]
[1728197505652,0.001,61968.0,61967.0,0.34405976]
[1728197505851,0.001,61968.0,61967.0,0.40861276]
[1728197506452,0.001,61968.0,61967.0,0.2846069]
[1728197507153,0.001,61968.0,61967.0,0.2836069]
[1728197507348,0.00242155,61972.0,61967.0,0.2320539]
[1728197507664,0.00242155,61972.0,61971.0,0.174549]
[1728197507863,0.00242155,61972.0,61971.0,0.34405432]
[1728197508262,0.00242155,61972.0,61971.0,0.44073251]
[1728197508452,0.00242155,61972.0,61971.0,0.34405432]
[1728197508650,0.00242155,61972.0,61971.0,0.39967991]
[1728197508862,0.00242155,61972.0,61971.0,0.41367991]
[1728197509264,0.00242155,61972.0,61971.0,0.42767991]
[1728197509566,0.00242155,61972.0,61971.0,0.40245432]
[1728197510259,0.00242155,61972.0,61971.0,0.49904212]
[1728197510663,0.00242155,61972.0,61971.0,0.85984212]
[1728197511050,0.00242155,61972.0,61971.0,0.84584212]
[1728197511258,0.00242155,61972.0,61971.0,0.76325432]
[1728197512272,0.00242155,61972.0,61971.0,0.76289263]
[1728197514568,0.0038,61979.0,61978.0,0.064542]
[1728197514864,0.3608,61990.0,61978.0,0.064542]
[1728197514865,0.0038,61986.0,61982.0,0.064538]
[1728197515067,0.42533,61990.0,61985.0,0.11]
[1728197515068,0.06453,61989.0,61985.0,0.11]
[1728197515270,0.06453,61989.0,61988.0,0.11]
[1728197516665,0.42533,61989.0,61988.0,0.11]
[1728197517670,0.42533,61989.0,61988.0,0.111]
[1728197517866,0.42533,61989.0,61988.0,0.112]
[1728197518373,0.0024201,61992.0,61988.0,0.24011087]
[1728197518564,0.0024201,61992.0,61991.0,0.11]
[1728197518762,0.0024201,61992.0,61991.0,0.13521895]
[1728197518963,0.0024201,61992.0,61991.0,0.23798218]
[1728197519270,0.0024201,61992.0,61991.0,0.30251018]
[1728197520468,0.0024201,61992.0,61991.0,0.28105181]
[1728197520775,0.0024201,61992.0,61991.0,0.28205181]
[1728197521161,0.0024201,61992.0,61991.0,0.6653182]
[1728197521582,0.0024201,61992.0,61991.0,0.6428218]
[1728197521768,0.0024201,61992.0,61991.0,0.56254695]
[1728197522164,0.0024201,61992.0,61991.0,0.537328]
[1728197523875,0.0038,61999.0,61991.0,0.57547108]
[1728197524181,0.00196,62001.0,61998.0,0.12871419]
[1728197524483,0.3646,62002.0,62000.0,0.15813503]
[1728197524484,0.3608,62002.0,62000.0,0.15813503]
[1728197525067,0.3608,62002.0,62000.0,0.11]
[1728197525278,0.3608,62002.0,61999.0,0.06419419]
[1728197525477,0.425317,62002.0,62001.0,0.11]
[1728197526667,0.064517,62002.0,62001.0,0.11]
[1728197527266,0.064517,62002.0,62001.0,0.111]
[1728197527574,0.3608,62003.0,62001.0,0.111]
[1728197528378,0.3608,62003.0,62001.0,0.24071219]
[1728197528580,0.3608,62003.0,62001.0,0.176518]
[1728197528772,0.3608,62003.0,62001.0,0.175518]
[1728197528970,0.0038,62007.0,62001.0,0.12023407]
[1728197529279,0.0038,62011.0,62009.0,0.064509]
[1728197529469,0.0024198,62014.0,62009.0,0.174509]
[1728197531670,0.0024198,62014.0,62009.0,0.175509]
[1728197532475,0.0024198,62014.0,62009.0,0.176509]
[1728197533884,0.3608,62011.0,62009.0,0.176509]
[1728197534084,0.3608,62011.0,62010.0,0.11]
[1728197535177,0.0024198,62014.0,62010.0,0.11]
[1728197535478,0.3608,62011.0,62010.0,0.001]
[1728197536578,0.3608,62011.0,62010.0,0.05011735]
[1728197537076,0.3608,62011.0,62010.0,0.111]
[1728197537279,0.3608,62011.0,62010.0,0.112]
[1728197541484,0.064507,62012.0,62010.0,0.112]
[1728197541784,0.3608,62011.0,62010.0,0.112]
[1728197542381,0.3608,62011.0,62010.0,0.17619419]
[1728197543289,0.3608,62011.0,62010.0,0.112]
[1728197544288,0.0024198,62014.0,62010.0,0.16020222]
[1728197544499,0.0024198,62014.0,62013.0,0.04820062]
[1728197544682,0.0024198,62014.0,62012.0,0.064506]
[1728197544883,0.0024198,62014.0,62013.0,0.11]
[1728197545992,0.0024198,62014.0,62013.0,0.111]
[1728197546388,0.0024198,62014.0,62013.0,0.17524583]
[1728197546586,0.0024198,62014.0,62013.0,0.17624583]
[1728197546892,0.0024198,62014.0,62013.0,0.112]
[1728197550896,0.0024198,62014.0,62013.0,0.21423391]
[1728197553698,0.0024198,62014.0,62013.0,0.21421478]
[1728197558695,0.0024198,62014.0,62013.0,0.112]
[1728197561500,0.0024198,62014.0,62013.0,0.13720964]
[1728197561799,0.0024198,62014.0,62013.0,0.112]
[1728197562499,0.0024198,62014.0,62013.0,0.13720965]
[1728197562995,0.0024198,62014.0,62013.0,0.112]
[1728197563408,0.0024198,62014.0,62013.0,0.13720962]
[1728197564308,0.0024198,62014.0,62013.0,0.112]
[1728197564619,0.0024198,62014.0,62013.0,0.13720967]
[1728197565596,0.0024198,62014.0,62013.0,0.23951581]
[1728197567802,0.0024198,62014.0,62013.0,0.23953032]
[1728197569207,0.0024198,62014.0,62013.0,0.23953025]
[1728197570710,0.0024198,62014.0,62013.0,0.33604124]
[1728197572406,0.0024198,62014.0,62013.0,0.33635231]
[1728197572606,0.0024198,62014.0,62013.0,0.36156205]
[1728197573011,0.0024198,62014.0,62013.0,0.36167229]
[1728197575811,0.0024198,62014.0,62013.0,0.23961233]
[1728197577919,0.0024198,62014.0,62013.0,0.13720974]
[1728197578122,0.0024198,62014.0,62013.0,0.23965809]
[1728197578919,0.0024198,62014.0,62013.0,0.21444835]
[1728197579122,0.0024198,62014.0,62013.0,0.23965812]
[1728197580027,0.0024198,62014.0,62013.0,0.33641528]
[1728197580619,0.0024198,62014.0,62013.0,0.23965812]
[1728197581327,0.0024198,62014.0,62013.0,0.21444835]
[1728197581514,0.0024198,62014.0,62013.0,0.23967855]
[1728197584525,0.0024198,62014.0,62013.0,0.21446905]
[1728197584822,0.0024198,62014.0,62013.0,0.23967878]
[1728197586721,0.0024198,62014.0,62013.0,0.21446905]
[1728197586921,0.0024198,62014.0,62013.0,0.23967878]
[1728197588430,0.0657198,62014.0,62013.0,0.23967878]
[1728197590025,0.0657198,62014.0,62013.0,0.23973469]
[1728197595637,0.0657198,62014.0,62013.0,0.13720973]
[1728197596435,0.0657198,62014.0,62013.0,0.13721035]
[1728197598729,0.0657198,62014.0,62013.0,0.21783318]
[1728197599832,0.0657198,62014.0,62013.0,0.32034615]
[1728197600935,0.0657198,62014.0,62013.0,0.32034945]
[1728197601136,0.0657198,62014.0,62013.0,0.32034951]
[1728197603336,0.0657198,62014.0,62013.0,0.23972668]
[1728197603730,0.0657198,62014.0,62013.0,0.36191709]
[1728197604440,0.0657198,62014.0,62013.0,0.33670674]
[1728197604637,0.0657198,62014.0,62013.0,0.36191709]
[1728197605044,0.2402238,62014.0,62013.0,0.10451633]
[1728197605237,0.7239838,62014.0,62013.0,0.10451633]
[1728197605640,0.7239838,62014.0,62013.0,0.18514146]
[1728197605952,0.2402238,62014.0,62013.0,0.18514146]
[1728197606249,0.1302238,62014.0,62013.0,0.08262513]
[1728197607350,0.1302238,62014.0,62013.0,0.002]
[1728197608546,0.6139838,62014.0,62013.0,0.002]
[1728197609049,0.1302238,62014.0,62013.0,0.002]
[1728197609945,1.2139838,62014.0,62013.0,0.002]
[1728197611565,1.3239838,62014.0,62011.0,0.08062513]
[1728197611747,0.2402238,62014.0,62012.0,0.04834952]
[1728197611947,0.064509,62009.0,62008.0,0.07575983]
[1728197612258,0.064511,62008.0,62007.0,0.06445983]
[1728197612453,0.064514,62005.0,62004.0,0.0113]
[1728197612641,0.064516,62003.0,62002.0,0.19062513]
[1728197612838,0.064516,62003.0,62002.0,0.11824077]
[1728197613046,0.064516,62003.0,62002.0,0.11]
[1728197613343,0.064516,62003.0,62002.0,0.11790514]
[1728197613542,0.064516,62003.0,62002.0,0.14312095]
[1728197613953,0.064516,62003.0,62002.0,0.15712095]
[1728197615048,0.064516,62003.0,62002.0,0.17112095]
[1728197616858,0.064516,62003.0,62002.0,0.16321581]
[1728197617743,0.064516,62003.0,62002.0,0.16321511]
[1728197618656,0.064516,62003.0,62002.0,0.22760339]
[1728197618957,0.064516,62003.0,62002.0,0.16321511]
[1728197619151,0.064516,62003.0,62002.0,0.22760339]
[1728197619549,0.064516,62003.0,62002.0,0.16321511]
[1728197621454,0.064516,62003.0,62002.0,0.16321552]